[Event "WYCC U18 Girls 2019"]
[Site "Mumbai"]
[Date "2019.10.07"]
[Round "7.8"]
[White "Serikbay, Assel"]
[Black "Aciu, Malina-Andreea"]
[Result "1-0"]
[ECO "D25"]
[WhiteElo "2208"]
[BlackElo "2076"]
[Annotator "ChessBase"]
[PlyCount "61"]
[EventDate "2019.10.02"]
[EventType "swiss"]
[EventCountry "IND"]
[SourceTitle "playchess.com"]
[Source "ChessBase"]
[SourceQuality "1"]
[TimeControl "40/5400+30:1800+30"]

1. d4 {[%emt 0:00:00]} d5 {[%emt 0:00:00]} 2. Nf3 {[%emt 0:00:00]} Nf6 {[%emt 0:00:00]} 3. c4 {[%emt 0:00:00]} dxc4 {[%emt 0:00:00]} 4. e3 {[%emt 0:00:02]} Bg4 {[%emt 0:00:00]} 5. Bxc4 {[%emt 0:00:21]} e6 {[%emt 0:00:00]} 6. O-O {[%emt 0:00:54]} Nc6 {[%emt 0:00:05]} 7. Nc3 {[%emt 0:01:42]} Bd6 {[%emt 0:01:16]} 8. h3 {[%emt 0:01:46]} Bh5 {[%emt 0:00:07]} 9. Be2 {[%emt 0:02:55]} O-O {[%emt 0:00:26]} 10. a3 {[%emt 0:02:54]} Qe7 {[%emt 0:02:58]} 11. b4 {[%emt 0:17:39]} a6 {[%emt 0:06:26]} 12. Bb2 {[%emt 0:07:51]} Rad8 {[%emt 0:01:19]} 13. Qb3 {[%emt 0:06:24]} e5 {[%emt 0:28:52]} 14. dxe5 {[%emt 0:05:03]} Nxe5 {[%emt 0:08:32]} 15. Nd4 {[%emt 0:01:08]} Bg6 {[%emt 0:05:09]} 16. Nb1 {[%emt 0:16:09]} c5 {[%emt 0:05:52]} 17. bxc5 {[%emt 0:00:11]} Bxc5 {[%emt 0:00:05]} 18. Nd2 {[%emt 0:01:17]} Ne4 {[%emt 0:02:27]} 19. Rad1 {[%emt 0:09:01]} Ba7 {[%emt 0:10:35]} 20. Nxe4 {[%emt 0:03:34]} Bxe4 {[%emt 0:00:05]} 21. f3 {[%emt 0:01:09]} Bg6 {[%emt 0:12:23]} 22. f4 {[%emt 0:08:47]} Nd3 {[%emt 0:12:28]} 23. Rxd3 {[%emt 0:01:47]} Bxd3 {[%emt 0:00:04]} 24. Qxd3 {[%emt 0:00:05]} Rfe8 {[%emt 0:00:06]} 25. Rf3 {[%emt 0:01:11]} Bxd4 {[%emt 0:01:12]} 26. Bxd4 {[%emt 0:00:16]} Rc8 {[%emt 0:00:04]} 27. Rg3 {[%emt 0:01:50]} Rc1+ {[%emt 0:00:32]} 28. Kh2 {[%emt 0:00:12]} f6 {[%emt 0:00:14]} 29. Qf5 {[%emt 0:04:05]} Rc6 {[%emt 0:00:54]} 30. Bf3 {[%emt 0:01:17]} Qe6 {[%emt 0:02:00]} 31. Bd5 {[%emt 0:00:10]} 1-0

[Event "WYCC U18 Girls 2019"]
[Site "Mumbai"]
[Date "2019.10.07"]
[Round "7.9"]
[White "Kucharska, Honorata"]
[Black "Toshali, V."]
[Result "1/2-1/2"]
[ECO "B13"]
[WhiteElo "2114"]
[BlackElo "1868"]
[Annotator "ChessBase"]
[PlyCount "118"]
[EventDate "2019.10.02"]
[EventType "swiss"]
[EventCountry "IND"]
[SourceTitle "playchess.com"]
[Source "ChessBase"]
[SourceQuality "1"]
[TimeControl "40/5400+30:1800+30"]

1. e4 c6 2. d4 d5 3. exd5 cxd5 4. Bd3 Nc6 5. c3 Qc7 6. Ne2 Bg4 7. O-O e6 8. Qe1 Bd6 9. f3 Bh5 10. Qh4 Bg6 11. Bxg6 fxg6 12. Nf4 Kf7 13. Nd3 Nf6 14. f4 Rhf8 15. Be3 Kg8 16. Nd2 Ne7 17. Qh3 Nf5 18. Rae1 b5 19. g4 Nxe3 20. Rxe3 Rae8 21. Qg2 a5 22. Ne5 b4 23. cxb4 Bxb4 24. Nb1 Qa7 25. Rd3 Ne4 26. Qe2 Rc8 27. Rdd1 Bd6 28. Qd3 g5 29. Nd2 Nxd2 30. Rxd2 gxf4 31. Nf3 e5 32. Qb5 Bb4 33. Rd3 exd4 34. Qxd5+ Qf7 35. Qxf7+ Rxf7 36. a3 Bc5 37. Rc1 Rfc7 38. Kg2 Bb6 39. Rcd1 Rc2+ 40. R1d2 Rxd2+ 41. Rxd2 Rd8 42. Ne5 a4 43. h4 Ba5 44. Rd3 Rb8 45. Nc4 Bd8 46. h5 g5 47. hxg6 hxg6 48. Kf3 Bf6 49. Kxf4 Kf7 50. Ke4 Re8+ 51. Kd5 Re2 52. Nd6+ Ke7 53. Ne4 Rxb2 54. Nxf6 Kxf6 55. Rxd4 Rb5+ 56. Kc6 Ra5 57. Kb6 Ra8 58. Kb7 Ra5 59. Kb6 Ke5 1/2-1/2

[Event "WYCC U18 Girls 2019"]
[Site "Mumbai"]
[Date "2019.10.07"]
[Round "7.10"]
[White "Harshini A"]
[Black "Azali, Tannaz"]
[Result "1-0"]
[ECO "B85"]
[WhiteElo "2230"]
[BlackElo "2022"]
[Annotator "ChessBase"]
[PlyCount "65"]
[EventDate "2019.10.02"]
[EventType "swiss"]
[EventCountry "IND"]
[SourceTitle "playchess.com"]
[Source "ChessBase"]
[SourceQuality "1"]
[TimeControl "40/5400+30:1800+30"]

1. e4 {[%emt 0:00:00]} c5 {[%emt 0:00:00]} 2. Nf3 {[%emt 0:00:05]} e6 {[%emt 0:00:00]} 3. d4 {[%emt 0:00:12]} cxd4 {[%emt 0:00:00]} 4. Nxd4 {[%emt 0:00:04]} Nc6 {[%emt 0:00:14]} 5. Nc3 {[%emt 0:00:26]} Qc7 {[%emt 0:01:22]} 6. Be2 {[%emt 0:00:17]} a6 {[%emt 0:00:09]} 7. O-O {[%emt 0:00:30]} Nf6 {[%emt 0:00:54]} 8. Kh1 {[%emt 0:00:26]} Be7 {[%emt 0:00:11]} 9. f4 {[%emt 0:00:37]} d6 {[%emt 0:00:37]} 10. a4 {[%emt 0:00:20]} O-O {[%emt 0:01:13]} 11. Be3 {[%emt 0:00:12]} Nxd4 {[%emt 0:01:49]} 12. Qxd4 {[%emt 0:00:45]} Bd7 {[%emt 0:01:35]} 13. e5 {[%emt 0:03:39]} Ne8 {[%emt 0:02:58]} 14. Bd3 {[%emt 0:02:25]} Bc6 {[%emt 0:07:02]} 15. Bg1 {[%emt 0:04:55]} Rd8 {[%emt 0:06:10]} 16. Qe3 {[%emt 0:00:41]} g6 {[%emt 0:07:39]} 17. Qg3 {[%emt 0:03:01]} Ng7 {[%emt 0:02:31]} 18. a5 {[%emt 0:00:23]} Nh5 {[%emt 0:06:13]} 19. Qg4 {[%emt 0:06:17]} dxe5 {[%emt 0:10:55]} 20. Bb6 {[%emt 0:01:20]} Qb8 {[%emt 0:01:11]} 21. Bxd8 {[%emt 0:04:02]} Bxd8 {[%emt 0:02:57]} 22. fxe5 {[%emt 0:01:45]} Qxe5 {[%emt 0:00:25]} 23. Qe2 {[%emt 0:09:40]} Qg5 {[%emt 0:12:55]} 24. Ne4 {[%emt 0:05:37]} Qh6 {[%emt 0:01:35]} 25. Kg1 {[%emt 0:00:23]} Bc7 {[%emt 0:02:24]} 26. g3 {[%emt 0:06:31]} f5 {[%emt 0:06:43]} 27. Nd6 {[%emt 0:05:54]} g5 {[%emt 0:07:57]} 28. Qe5 {[%emt 0:05:03]} Rd8 {[%emt 0:03:45]} 29. Nxf5 {[%emt 0:00:40]} exf5 {[%emt 0:01:15]} 30. Qxc7 {[%emt 0:00:15]} Rd7 {[%emt 0:00:46]} 31. Qb8+ {[%emt 0:00:44]} Kg7 {[%emt 0:00:41]} 32. Rxf5 {[%emt 0:00:17]} Nf6 {[%emt 0:00:35]} 33. Raf1 {[%emt 0:01:32]} 1-0

[Event "WYCC U18 Girls 2019"]
[Site "Mumbai"]
[Date "2019.10.07"]
[Round "7.11"]
[White "Khachatryan, Anna"]
[Black "Nilssen, Ellen Fredericia"]
[Result "1-0"]
[ECO "A30"]
[WhiteElo "2044"]
[BlackElo "2137"]
[Annotator "ChessBase"]
[PlyCount "97"]
[EventDate "2019.10.02"]
[EventType "swiss"]
[EventCountry "IND"]
[SourceTitle "playchess.com"]
[Source "ChessBase"]
[SourceQuality "1"]
[TimeControl "40/5400+30:1800+30"]

1. c4 {[%emt 0:00:36]} c5 {[%emt 0:02:43]} 2. Nf3 {[%emt 0:00:15]} Nc6 {[%emt 0:00:14]} 3. g3 {[%emt 0:01:41]} g6 {[%emt 0:00:12]} 4. Bg2 {[%emt 0:00:13]} Bg7 {[%emt 0:00:09]} 5. O-O {[%emt 0:00:46]} e6 {[%emt 0:00:41]} 6. Nc3 {[%emt 0:01:38]} Nge7 {[%emt 0:00:09]} 7. d3 {[%emt 0:01:18]} O-O {[%emt 0:01:36]} 8. Be3 {[%emt 0:09:39]} d6 {[%emt 0:01:10]} 9. Qc1 {[%emt 0:01:07]} Rb8 {[%emt 0:05:08]} 10. Bh6 {[%emt 0:04:36]} a6 {[%emt 0:04:16]} 11. Bxg7 {[%emt 0:05:36]} Kxg7 {[%emt 0:00:03]} 12. h4 {[%emt 0:03:11]} Nf5 {[%emt 0:07:33]} 13. Ng5 {[%emt 0:12:48]} Bd7 {[%emt 0:12:06]} 14. e3 {[%emt 0:08:20]} Ne5 {[%emt 0:03:34]} 15. Qc2 {[%emt 0:07:49]} Bc6 {[%emt 0:02:19]} 16. Nce4 {[%emt 0:07:13]} Qe7 {[%emt 0:07:01]} 17. Rad1 {[%emt 0:09:14]} Rbc8 {[%emt 0:04:40]} 18. Nf3 {[%emt 0:06:55]} Nxf3+ {[%emt 0:09:33]} 19. Bxf3 {[%emt 0:00:06]} Nh6 {[%emt 0:04:17]} 20. Bg2 {[%emt 0:01:43]} Ng4 {[%emt 0:04:04]} 21. b3 {[%emt 0:02:36]} f5 {[%emt 0:03:20]} 22. Qb2+ {[%emt 0:00:14]} Kg8 {[%emt 0:02:40]} 23. Ng5 {[%emt 0:00:34]} e5 {[%emt 0:04:21]} 24. Qe2 {[%emt 0:00:16]} Nf6 {[%emt 0:00:36]} 25. Rfe1 {[%emt 0:01:10]} Nh5 {[%emt 0:01:27]} 26. Bf3 {[%emt 0:03:03]} h6 {[%emt 0:02:56]} 27. Nh3 {[%emt 0:01:44]} Ng7 {[%emt 0:00:25]} 28. Bxc6 {[%emt 0:01:30]} bxc6 {[%emt 0:02:58]} 29. d4 {[%emt 0:00:31]} cxd4 {[%emt 0:02:29]} 30. exd4 {[%emt 0:00:05]} Rfe8 {[%emt 0:00:17]} 31. dxe5 {[%emt 0:00:24]} dxe5 {[%emt 0:00:10]} 32. Nf4 {[%emt 0:00:45]} Qf6 {[%emt 0:02:00]} 33. Nd3 {[%emt 0:00:34]} e4 {[%emt 0:01:13]} 34. Qb2 {[%emt 0:01:40]} Qf7 {[%emt 0:04:59]} 35. Nc5 {[%emt 0:01:13]} Rcd8 {[%emt 0:01:53]} 36. Nxa6 {[%emt 0:01:56]} Qa7 {[%emt 0:01:01]} 37. Nb4 {[%emt 0:00:04]} Rxd1 {[%emt 0:01:03]} 38. Rxd1 {[%emt 0:00:03]} e3 {[%emt 0:00:05]} 39. Nxc6 {[%emt 0:02:01]} Qc7 {[%emt 0:01:33]} 40. Nb4 {[%emt 0:01:09]} e2 {[%emt 0:02:20]} 41. Re1 {[%emt 0:30:43]} Qa5 {[%emt 0:13:09]} 42. Nd3 {[%emt 0:00:00]} Qd8 {[%emt 0:02:31]} 43. Qc2 {[%emt 0:00:00]} f4 {[%emt 0:05:13]} 44. Nxf4 {[%emt 0:00:00]} g5 {[%emt 0:00:07]} 45. Nd5 {[%emt 0:00:00]} gxh4 {[%emt 0:00:42]} 46. Rxe2 {[%emt 0:00:00]} Rxe2 {[%emt 0:02:49]} 47. Qxe2 {[%emt 0:00:00]} hxg3 {[%emt 0:00:06]} 48. fxg3 {[%emt 0:00:00]} Qg5 {[%emt 0:00:13]} 49. Qe3 {[%emt 0:00:00]} 1-0

[Event "WYCC U18 Girls 2019"]
[Site "Mumbai"]
[Date "2019.10.07"]
[Round "7.12"]
[White "Pandey Srishti"]
[Black "Tarini Goyal"]
[Result "1/2-1/2"]
[ECO "B18"]
[WhiteElo "1963"]
[BlackElo "2128"]
[Annotator "ChessBase"]
[PlyCount "60"]
[EventDate "2019.10.02"]
[EventType "swiss"]
[EventCountry "IND"]
[SourceTitle "playchess.com"]
[Source "ChessBase"]
[SourceQuality "1"]
[TimeControl "40/5400+30:1800+30"]

1. e4 c6 2. d4 d5 3. Nd2 dxe4 4. Nxe4 Bf5 5. Ng3 Bg6 6. h4 h6 7. Nh3 Nf6 8. Nf4 Bh7 9. Bc4 e6 10. O-O Bd6 11. Re1 O-O 12. c3 a5 13. a4 Re8 14. Ngh5 Nbd7 15. g3 Nxh5 16. Nxh5 Nf6 17. Bf4 Bxf4 18. Nxf4 Qb6 19. Qb3 Qxb3 20. Bxb3 g5 21. hxg5 hxg5 22. Nh3 g4 23. Nf4 Kg7 24. Re3 Bf5 25. Rae1 Rh8 26. Ng2 Nh7 27. Nh4 Ng5 28. Kg2 Rh5 29. Bd1 Rah8 30. b3 Kf6 1/2-1/2

[Event "WYCC U18 Girls 2019"]
[Site "Mumbai"]
[Date "2019.10.07"]
[Round "7.12"]
[White "Pandey Srishti"]
[Black "Tarini Goyal"]
[Result "*"]
[ECO "B18"]
[WhiteElo "1963"]
[BlackElo "2128"]
[Annotator "ChessBase"]
[PlyCount "41"]
[EventDate "2019.10.02"]
[EventType "swiss"]
[EventCountry "IND"]
[SourceTitle "playchess.com"]
[Source "ChessBase"]
[SourceQuality "1"]
[TimeControl "40/5400+30:1800+30"]

1. e4 c6 2. d4 d5 3. Nd2 dxe4 4. Nxe4 Bf5 5. Ng3 Bg6 6. h4 h6 7. Nh3 Nf6 8. Nf4 Bh7 9. Bc4 e6 10. O-O Bd6 11. Re1 O-O 12. c3 a5 13. a4 Re8 14. Ngh5 Nbd7 15. g3 Nxh5 16. Nxh5 Nf6 17. Bf4 Bxf4 18. Nxf4 Qb6 19. Qb3 Qb5 20. Qb4 Qxb4 21. Bb3 *

[Event "WYCC U18 Girls 2019"]
[Site "Mumbai"]
[Date "2019.10.07"]
[Round "7.13"]
[White "Urh, Zala"]
[Black "Sowa, Wiktoria"]
[Result "1-0"]
[ECO "D86"]
[WhiteElo "2105"]
[BlackElo "2016"]
[Annotator "ChessBase"]
[PlyCount "75"]
[EventDate "2019.10.02"]
[EventType "swiss"]
[EventCountry "IND"]
[SourceTitle "playchess.com"]
[Source "ChessBase"]
[SourceQuality "1"]
[TimeControl "40/5400+30:1800+30"]

1. d4 {[%emt 0:00:00]} Nf6 {[%emt 0:00:00]} 2. c4 {[%emt 0:00:00]} g6 {[%emt 0:00:00]} 3. Nc3 {[%emt 0:00:00]} d5 {[%emt 0:00:00]} 4. cxd5 {[%emt 0:00:00]} Nxd5 {[%emt 0:00:09]} 5. e4 {[%emt 0:00:00]} Nxc3 {[%emt 0:00:03]} 6. bxc3 {[%emt 0:00:09]} Bg7 {[%emt 0:00:03]} 7. Bc4 {[%emt 0:00:13]} c5 {[%emt 0:00:20]} 8. Ne2 {[%emt 0:00:08]} O-O {[%emt 0:00:19]} 9. O-O {[%emt 0:00:09]} Nc6 {[%emt 0:00:05]} 10. Be3 {[%emt 0:00:10]} Bg4 {[%emt 0:00:28]} 11. f3 {[%emt 0:00:38]} Bd7 {[%emt 0:00:15]} 12. Rb1 {[%emt 0:00:15]} Rc8 {[%emt 0:00:44]} 13. dxc5 {[%emt 0:00:54]} Qc7 {[%emt 0:02:43]} 14. Nd4 {[%emt 0:00:21]} Ne5 {[%emt 0:02:54]} 15. Bb3 {[%emt 0:07:09]} Rfd8 {[%emt 0:02:39]} 16. Qe2 {[%emt 0:04:37]} Qa5 {[%emt 0:05:35]} 17. f4 {[%emt 0:13:18]} Ng4 {[%emt 0:07:45]} 18. Bd2 {[%emt 0:06:19]} Qxc5 {[%emt 0:01:54]} 19. e5 {[%emt 0:00:20]} Nh6 {[%emt 0:05:57]} 20. e6 {[%emt 0:13:07]} Bb5 {[%emt 0:08:26]} 21. exf7+ {[%emt 0:03:19]} Kh8 {[%emt 0:00:40]} 22. Qe6 {[%emt 0:03:07]} Bxf1 {[%emt 0:01:39]} 23. Rxf1 {[%emt 0:00:08]} Nf5 {[%emt 0:02:20]} 24. Kh1 {[%emt 0:02:16]} Nxd4 {[%emt 0:03:29]} 25. cxd4 {[%emt 0:00:13]} Qxd4 {[%emt 0:00:59]} 26. Be3 {[%emt 0:03:00]} Qd3 {[%emt 0:03:16]} 27. Re1 {[%emt 0:01:45]} Bf6 {[%emt 0:02:30]} 28. Bxa7 {[%emt 0:05:24]} Kg7 {[%emt 0:10:00]} 29. Bf2 {[%emt 0:08:25]} Qd2 {[%emt 0:02:40]} 30. Qe3 {[%emt 0:03:26]} Qb2 {[%emt 0:02:41]} 31. g4 {[%emt 0:16:32]} Rc3 {[%emt 0:22:13]} 32. Qb6 {[%emt 0:01:24]} Rd2 {[%emt 0:01:46]} 33. g5 {[%emt 0:03:22]} Rxb3 {[%emt 0:04:35]} 34. gxf6+ {[%emt 0:00:52]} exf6 {[%emt 0:00:44]} 35. Qc5 {[%emt 0:01:22]} Kxf7 {[%emt 0:01:20]} 36. Re7+ {[%emt 0:00:22]} Kf8 {[%emt 0:00:06]} 37. Rd7+ {[%emt 0:00:35]} Kg8 {[%emt 0:00:05]} 38. Qc8# {[%emt 0:00:06]} 1-0

[Event "WYCC U18 Girls 2019"]
[Site "Mumbai"]
[Date "2019.10.07"]
[Round "7.14"]
[White "Swiech, Joanna"]
[Black "Sanskriti Goyal"]
[Result "1/2-1/2"]
[ECO "A60"]
[WhiteElo "2054"]
[BlackElo "1980"]
[Annotator "NA"]
[PlyCount "75"]
[EventDate "2019.10.02"]
[EventType "swiss"]
[EventCountry "IND"]
[SourceTitle "playchess.com"]
[Source "ChessBase"]
[SourceQuality "1"]
[TimeControl "40/5400+30:1800+30"]

1. d4 Nf6 2. c4 c5 3. d5 e6 4. Nc3 exd5 5. cxd5 d6 6. Bf4 g6 7. h3 a6 8. a4 Bg7 9. e3 O-O 10. Nf3 Qe7 {A61: Modern Benoni: Nf3 without early e4} (10... Ne8 11. Be2 Nd7 12. O-O Rb8 13. a5 b5 14. axb6 Rxb6 15. Qc2 Qe7 16. Nd2 Ne5 17. Bh2 f5 18. Rfe1 {1-0 (36) Gledura,B (2622)-Perunovic,M (2604) Hungary 2019}) 11. Be2 Nfd7 12. Bg5 f6 13. Bh4 $146 ({Predecessor:} 13. Bf4 Ne5 14. Bxe5 fxe5 15. Nd2 Nd7 16. Bg4 Nf6 17. Bxc8 Rfxc8 18. a5 {1-0 (55) Dutra Neto,A (2429)-Degterev,P (2237) LSS email 2011}) 13... Ne5 14. Nd2 Nbd7 15. a5 g5 16. Bg3 f5 17. Bxe5 Nxe5 18. Na4 Bd7 19. Nb6 Rad8 $11 20. Qc2 Bb5 21. Ndc4 f4 22. O-O-O Nxc4 23. Nxc4 Bxc4 24. Bxc4 fxe3 25. Rhe1 Qc7 26. Rxe3 Qxa5 27. Kb1 Rf4 28. g3 Rf7 29. Rde1 Bd4 30. Re8+ Rxe8 31. Rxe8+ Kg7 32. f4 Qc7 33. Bd3 Re7 34. Rxe7+ Qxe7 35. Bxh7 Qe1+ 36. Ka2 Qa5+ 37. Kb1 Qe1+ 38. Ka2 1/2-1/2

[Event "WYCC U18 Girls 2019"]
[Site "Mumbai"]
[Date "2019.10.09"]
[Round "8.1"]
[White "Vantika Agrawal"]
[Black "Shuvalova, Polina"]
[Result "1/2-1/2"]
[ECO "D30"]
[WhiteElo "2283"]
[BlackElo "2412"]
[Annotator "ChessBase"]
[PlyCount "103"]
[EventDate "2019.10.02"]
[EventType "swiss"]
[EventCountry "IND"]
[SourceTitle "playchess.com"]
[Source "ChessBase"]
[SourceQuality "1"]
[TimeControl "40/5400+30:1800+30"]

1. d4 {[%emt 0:00:00]} d5 {[%emt 0:00:00]} 2. c4 {[%emt 0:00:04]} e6 {[%emt 0:00:00]} 3. Nf3 {[%emt 0:00:05]} Nf6 {[%emt 0:00:00]} 4. g3 {[%emt 0:00:27]} Bb4+ {[%emt 0:00:03]} 5. Nbd2 {[%emt 0:00:53]} dxc4 {[%emt 0:00:11]} 6. Bg2 {[%emt 0:00:50]} b5 {[%emt 0:00:07]} 7. O-O {[%emt 0:00:24]} a5 {[%emt 0:00:10]} 8. a3 {[%emt 0:04:20]} Be7 {[%emt 0:01:47]} 9. b3 {[%emt 0:03:35]} cxb3 {[%emt 0:07:18]} 10. Nxb3 {[%emt 0:09:58]} O-O {[%emt 0:05:19]} 11. Ne5 {[%emt 0:01:50]} Nd5 {[%emt 0:03:54]} 12. Bb2 {[%emt 0:09:37]} Bb7 {[%emt 0:09:48]} 13. Qc2 {[%emt 0:09:02]} Nd7 {[%emt 0:11:50]} 14. Nc6 {[%emt 0:04:24]} Bxc6 {[%emt 0:02:15]} 15. Qxc6 {[%emt 0:02:34]} a4 {[%emt 0:01:08]} 16. Nd2 {[%emt 0:01:31]} Rb8 {[%emt 0:08:03]} 17. e4 {[%emt 0:07:34]} Rb6 {[%emt 0:02:15]} 18. Qc2 {[%emt 0:00:14]} N5f6 {[%emt 0:00:08]} 19. Rfd1 {[%emt 0:09:44]} Qb8 {[%emt 0:10:10]} 20. Nf3 {[%emt 0:17:12]} c5 {[%emt 0:06:39]} 21. dxc5 {[%emt 0:02:14]} Rc8 {[%emt 0:03:36]} 22. e5 {[%emt 0:02:10]} Nd5 {[%emt 0:01:15]} 23. Qe2 {[%emt 0:03:41]} Nxc5 {[%emt 0:03:44]} 24. Nd4 {[%emt 0:01:56]} Bf8 {[%emt 0:02:36]} 25. Rac1 {[%emt 0:01:27]} g6 {[%emt 0:03:16]} 26. h4 {[%emt 0:01:00]} b4 {[%emt 0:04:04]} 27. axb4 {[%emt 0:00:56]} Nxb4 {[%emt 0:01:44]} 28. Ba3 {[%emt 0:01:02]} Nb3 {[%emt 0:01:28]} 29. Rxc8 {[%emt 0:00:21]} Qxc8 {[%emt 0:00:19]} 30. h5 {[%emt 0:05:06]} Nd5 {[%emt 0:04:27]} 31. Bxf8 {[%emt 0:00:16]} Qxf8 {[%emt 0:01:19]} 32. Bxd5 {[%emt 0:00:58]} exd5 {[%emt 0:00:34]} 33. hxg6 {[%emt 0:00:23]} hxg6 {[%emt 0:00:32]} 34. e6 {[%emt 0:00:36]} Nxd4 {[%emt 0:02:48]} 35. exf7+ {[%emt 0:00:05]} Qxf7 {[%emt 0:00:10]} 36. Rxd4 {[%emt 0:00:04]} a3 {[%emt 0:00:35]} 37. Ra4 {[%emt 0:00:35]} Rb2 {[%emt 0:04:08]} 38. Ra8+ {[%emt 0:00:33]} Kh7 {[%emt 0:00:17]} 39. Qe3 {[%emt 0:00:24]} d4 {[%emt 0:00:59]} 40. Qxd4 {[%emt 0:00:54]} Rb1+ {[%emt 0:00:21]} 41. Kh2 {[%emt 0:02:14]} Rh1+ {[%emt 0:02:45]} 42. Kxh1 {[%emt 0:00:21]} Qf3+ {[%emt 0:00:08]} 43. Kh2 {[%emt 0:01:18]} Qxa8 {[%emt 0:00:05]} 44. Qd7+ {[%emt 0:01:11]} Kh8 {[%emt 0:00:18]} 45. Qh3+ {[%emt 0:01:30]} Kg7 {[%emt 0:00:51]} 46. Qd7+ {[%emt 0:00:10]} Kg8 {[%emt 0:02:32]} 47. Qe6+ {[%emt 0:00:21]} Kg7 {[%emt 0:00:04]} 48. Qe7+ {[%emt 0:01:43]} Kg8 {[%emt 0:00:10]} 49. Qe6+ {[%emt 0:00:04]} Kg7 {[%emt 0:00:03]} 50. Qe7+ {[%emt 0:00:03]} Kg8 {[%emt 0:00:04]} 51. Qe6+ {[%emt 0:00:02]} Kg7 {[%emt 0:00:04]} 52. Qe7+ {[%emt 0:00:04]} 1/2-1/2

[Event "WYCC U18 Girls 2019"]
[Site "Mumbai"]
[Date "2019.10.09"]
[Round "8.2"]
[White "Afonasieva, Anna"]
[Black "Schulze, Lara"]
[Result "1/2-1/2"]
[ECO "E15"]
[WhiteElo "2312"]
[BlackElo "2327"]
[Annotator "ChessBase"]
[PlyCount "148"]
[EventDate "2019.10.02"]
[EventType "swiss"]
[EventCountry "IND"]
[SourceTitle "playchess.com"]
[Source "ChessBase"]
[SourceQuality "1"]
[TimeControl "40/5400+30:1800+30"]

1. d4 {[%emt 0:00:00]} Nf6 {[%emt 0:00:00]} 2. Nf3 {[%emt 0:00:00]} e6 3. c4 {[%emt 0:00:00]} b6 {[%emt 0:00:00]} 4. g3 {[%emt 0:00:00]} Ba6 {[%emt 0:00:00]} 5. Qc2 {[%emt 0:01:23]} c5 {[%emt 0:00:44]} 6. Bg2 {[%emt 0:11:14]} Nc6 {[%emt 0:22:00]} 7. dxc5 {[%emt 0:01:15]} bxc5 {[%emt 0:03:08]} 8. O-O {[%emt 0:01:34]} Be7 {[%emt 0:01:00]} 9. Rd1 {[%emt 0:05:47]} O-O {[%emt 0:01:52]} 10. Nc3 {[%emt 0:06:27]} Rc8 {[%emt 0:05:14]} 11. b3 {[%emt 0:02:35]} d5 {[%emt 0:07:03]} 12. cxd5 {[%emt 0:06:38]} exd5 {[%emt 0:02:08]} 13. Bh3 {[%emt 0:14:48]} Rb8 {[%emt 0:09:49]} 14. Bf4 {[%emt 0:01:15]} Rb4 {[%emt 0:06:39]} 15. Ne5 {[%emt 0:15:28]} Nd4 {[%emt 0:08:21]} 16. Qb2 {[%emt 0:02:21]} Bd6 {[%emt 0:01:17]} 17. Nd3 {[%emt 0:03:27]} Bxd3 {[%emt 0:02:58]} 18. Bxd6 {[%emt 0:00:50]} Qxd6 {[%emt 0:03:03]} 19. Rxd3 {[%emt 0:00:14]} Qe5 {[%emt 0:01:08]} 20. Bg2 {[%emt 0:02:55]} c4 {[%emt 0:04:12]} 21. Rd2 {[%emt 0:04:32]} cxb3 {[%emt 0:02:01]} 22. e3 {[%emt 0:05:40]} Nc2 {[%emt 0:05:02]} 23. Rc1 {[%emt 0:01:40]} Rc4 {[%emt 0:08:25]} 24. axb3 {[%emt 0:03:14]} Qxc3 {[%emt 0:02:26]} 25. Rcxc2 {[%emt 0:00:51]} Qxb2 {[%emt 0:00:49]} 26. Rxb2 {[%emt 0:00:04]} Rc1+ {[%emt 0:00:27]} 27. Bf1 {[%emt 0:00:05]} h5 {[%emt 0:00:40]} 28. Kg2 {[%emt 0:00:32]} a5 {[%emt 0:01:27]} 29. Be2 {[%emt 0:03:04]} Rb8 {[%emt 0:00:50]} 30. Rd4 {[%emt 0:01:13]} Ra1 {[%emt 0:01:28]} 31. Bf3 {[%emt 0:00:57]} Rb5 {[%emt 0:00:33]} 32. Rc2 {[%emt 0:01:04]} Rxb3 {[%emt 0:00:31]} 33. Rc8+ {[%emt 0:00:10]} Kh7 {[%emt 0:00:01]} 34. Bxd5 {[%emt 0:00:17]} Nxd5 {[%emt 0:00:30]} 35. Rxd5 {[%emt 0:00:04]} Rb2 {[%emt 0:00:59]} 36. Rxh5+ {[%emt 0:01:14]} Kg6 {[%emt 0:00:01]} 37. Rcc5 {[%emt 0:00:52]} a4 {[%emt 0:00:29]} 38. Rhg5+ {[%emt 0:01:23]} Kh6 {[%emt 0:00:09]} 39. Rg4 {[%emt 0:00:38]} a3 40. Ra5 {[%emt 0:00:13]} Raa2 {[%emt 0:01:56]} 41. Rf4 {[%emt 0:30:35]} f6 {[%emt 0:03:17]} 42. h4 {[%emt 0:00:00]} Re2 {[%emt 0:01:46]} 43. Rf3 {[%emt 0:00:00]} Ra1 {[%emt 0:01:03]} 44. Rf4 {[%emt 0:00:00]} Raa2 {[%emt 0:01:35]} 45. Kf1 {[%emt 0:00:00]} Rec2 {[%emt 0:01:23]} 46. g4 {[%emt 0:00:00]} Rc1+ {[%emt 0:02:46]} 47. Kg2 {[%emt 0:00:00]} Re1 {[%emt 0:00:37]} 48. g5+ {[%emt 0:00:00]} fxg5 {[%emt 0:00:22]} 49. hxg5+ {[%emt 0:00:00]} Kg6 {[%emt 0:03:47]} 50. e4 {[%emt 0:00:00]} Rae2 {[%emt 0:04:13]} 51. Ra6+ {[%emt 0:00:00]} Kh5 {[%emt 0:08:12]} 52. Rxa3 {[%emt 0:01:00]} Rxe4 {[%emt 0:00:20]} 53. Kf3 {[%emt 0:03:28]} Re5 {[%emt 0:02:00]} 54. Rf8 {[%emt 0:01:38]} Kxg5 {[%emt 0:01:21]} 55. Kg2 {[%emt 0:00:44]} Kg6 {[%emt 0:01:41]} 56. f4 {[%emt 0:00:20]} R5e2+ {[%emt 0:00:33]} 57. Kf3 {[%emt 0:00:09]} Rh2 {[%emt 0:01:25]} 58. Ra6+ {[%emt 0:02:13]} Kh7 {[%emt 0:00:02]} 59. Raa8 {[%emt 0:01:20]} Rb2 {[%emt 0:02:03]} 60. f5 {[%emt 0:00:54]} Rf1+ {[%emt 0:00:14]} 61. Ke3 {[%emt 0:00:19]} Re1+ {[%emt 0:01:06]} 62. Kd4 {[%emt 0:00:33]} Kh6 {[%emt 0:00:18]} 63. Ra6+ {[%emt 0:00:41]} Kh7 {[%emt 0:00:36]} 64. Rf7 {[%emt 0:00:35]} Rd2+ {[%emt 0:00:22]} 65. Kc3 {[%emt 0:00:16]} Red1 {[%emt 0:00:25]} 66. Rg6 {[%emt 0:01:16]} Rd3+ {[%emt 0:00:39]} 67. Kc4 {[%emt 0:00:04]} Rd4+ {[%emt 0:00:13]} 68. Kc5 {[%emt 0:00:05]} Rd5+ {[%emt 0:00:43]} 69. Kc6 {[%emt 0:00:05]} Rxf5 {[%emt 0:00:38]} 70. Rfxg7+ {[%emt 0:00:32]} Kh8 {[%emt 0:00:01]} 71. Rg8+ {[%emt 0:00:11]} Kh7 {[%emt 0:00:07]} 72. R6g7+ {[%emt 0:00:04]} Kh6 {[%emt 0:00:07]} 73. Rg2 {[%emt 0:00:10]} Kh7 {[%emt 0:00:42]} 74. R8g3 {[%emt 0:02:00]} Rh5 {[%emt 0:00:45]} 1/2-1/2